fUSD/lending_fUSD_20241221
["ID","MTS","AMOUNT","RATE_DAILY","PERIOD"]
[346194515,1734771037780,-500.0,0.00019178,2]
[346194517,1734771037789,-537.61085667,0.00019178,2]
[346194519,1734771037799,-500.0,0.00019178,2]
[346194521,1734771037808,-500.0,0.00019178,2]
[346194523,1734771037817,-500.0,0.00019178,2]
[346194524,1734771037826,-500.0,0.00019178,2]
[346194525,1734771037836,-500.0,0.00019178,2]
[346194526,1734771037845,-500.0,0.00019178,2]
[346194527,1734771037855,-500.0,0.00019178,2]
[346194529,1734771037864,-500.0,0.00019178,2]
[346194532,1734771037873,-500.0,0.00019178,2]
[346194534,1734771037882,-500.0,0.00019178,2]
[346194536,1734771037890,-602.94,0.00019178,2]
[346194538,1734771037899,-500.0,0.00019178,2]
[346194540,1734771037908,-500.0,0.00019178,2]
[346194542,1734771037917,-568.61,0.00019178,2]
[346194544,1734771037927,-500.0,0.00019178,2]
[346194546,1734771037936,-500.0,0.00019178,2]
[346194548,1734771037945,-500.0,0.00019178,2]
[346194550,1734771037954,-500.0,0.00019178,2]
[346194552,1734771037963,-500.0,0.00019178,2]
[346194554,1734771037973,-500.0,0.00019178,2]
[346194556,1734771037982,-500.0,0.00019178,2]
[346194558,1734771037991,-377.38862422,0.00019178,2]
[346194560,1734771038000,-500.0,0.00019178,2]
[346194562,1734771038009,-500.0,0.00019178,2]
[346194564,1734771038021,-500.0,0.00019178,2]
[346194566,1734771038031,-500.0,0.00019178,2]
[346194568,1734771038040,-500.0,0.00019178,2]
[346194570,1734771038050,-500.0,0.00019178,2]
[346194572,1734771038060,-500.0,0.00019178,2]
[346194574,1734771038070,-500.0,0.00019178,2]
[346194576,1734771038079,-500.0,0.00019178,2]
[346194578,1734771038089,-500.0,0.00019178,2]
[346194580,1734771038099,-500.0,0.00019178,2]
[346194582,1734771038108,-500.0,0.00019178,2]
[346194584,1734771038118,-500.0,0.00019178,2]
[346194586,1734771038127,-500.0,0.00019178,2]
[346194588,1734771038137,-500.0,0.00019178,2]
[346194590,1734771038146,-201.42433743,0.00019178,2]
[346194592,1734771038155,-762.91,0.00019178,2]
[346194594,1734771038165,-500.0,0.00019178,2]
[346194596,1734771038173,-500.0,0.00019178,2]
[346194598,1734771038183,-500.0,0.00019178,2]
[346194600,1734771038191,-500.0,0.00019178,2]
[346194602,1734771038201,-500.0,0.00019178,2]
[346194604,1734771038210,-501.77005247,0.00019178,2]
[346194606,1734771038219,-500.0,0.00019178,2]
[346194608,1734771038228,-500.0,0.00019178,2]
[346194610,1734771038238,-500.0,0.00019178,2]
[346194612,1734771038247,-500.0,0.00019178,2]
[346194614,1734771038256,-500.0,0.00019178,2]
[346194616,1734771038267,-500.0,0.00019178,2]
[346194618,1734771038276,-500.0,0.00019178,2]
[346194620,1734771038285,-510.04361859,0.00019178,2]
[346194622,1734771038294,-525.65,0.00019178,2]
[346194624,1734771038304,-500.0,0.00019178,2]
[346194626,1734771038313,-500.0,0.00019178,2]
[346194628,1734771038322,-500.0,0.00019178,2]
[346194630,1734771038332,-500.0,0.00019178,2]
[346194632,1734771038341,-500.0,0.00019178,2]
[346194634,1734771038351,-608.37,0.00019178,2]
[346194636,1734771038361,-500.0,0.00019178,2]
[346194638,1734771038370,-500.0,0.00019178,2]
[346194640,1734771038379,-500.0,0.00019178,2]
[346194642,1734771038388,-500.0,0.00019178,2]
[346194644,1734771038397,-500.0,0.00019178,2]
[346194646,1734771038408,-500.0,0.00019178,2]
[346194648,1734771038418,-500.0,0.00019178,2]
[346194650,1734771038428,-500.0,0.00019178,2]
[346194652,1734771038436,-500.0,0.00019178,2]
[346194654,1734771038445,-506.00993551,0.00019178,2]
[346194656,1734771038456,-500.0,0.00019178,2]
[346194658,1734771038466,-500.0,0.00019178,2]
[346194660,1734771038475,-500.0,0.00019178,2]
[346194662,1734771038492,-500.0,0.00019178,2]
[346194664,1734771038503,-500.0,0.00019178,2]
[346194666,1734771038512,-500.0,0.00019178,2]
[346194668,1734771038522,-500.0,0.00019178,2]
[346194670,1734771038531,-500.0,0.00019178,2]
[346194671,1734771038541,-500.0,0.00019178,2]
[346194673,1734771038550,-500.0,0.00019178,2]
[346194676,1734771038560,-500.0,0.00019178,2]
[346194677,1734771038569,-203.25022827,0.00019178,2]
[346194680,1734771038578,-502.38665158,0.00019178,2]
[346194682,1734771038587,-500.0,0.00019178,2]
[346194684,1734771038596,-402.15400497,0.00019178,2]
[346194685,1734771038606,-500.0,0.00019178,2]
[346194686,1734771038615,-500.0,0.00019178,2]
[346194687,1734771038623,-500.0,0.00019178,2]
[346194688,1734771038632,-500.0,0.00019178,2]
[346194689,1734771038641,-500.0,0.00019178,2]
[346194690,1734771038650,-500.0,0.00019178,2]
[346194691,1734771038659,-500.0,0.00019178,2]
[346194692,1734771038668,-500.0,0.00019178,2]
[346194693,1734771038677,-500.0,0.00019178,2]
[346194694,1734771038687,-500.0,0.00019178,2]
[346194695,1734771038695,-500.0,0.00019178,2]
[346194696,1734771038704,-500.0,0.00019178,2]
[346194697,1734771038713,-500.0,0.00019178,2]
[346194698,1734771038722,-500.0,0.00019178,2]
[346194699,1734771038730,-500.0,0.00019178,2]
[346194700,1734771038739,-500.0,0.00019178,2]
[346194701,1734771038748,-500.0,0.00019178,2]
[346194702,1734771038756,-236.49440271,0.00019178,2]
[346194703,1734771038765,-500.0,0.00019178,2]
[346194704,1734771038774,-500.0,0.00019178,2]
[346194705,1734771038783,-500.0,0.00019178,2]
[346194706,1734771038791,-500.0,0.00019178,2]
[346194708,1734771038800,-618.48,0.00019178,2]
[346194710,1734771038809,-500.0,0.00019178,2]
[346194712,1734771038818,-502.18827826,0.00019178,2]
[346194714,1734771038827,-500.0,0.00019178,2]
[346194716,1734771038836,-500.0,0.00019178,2]
[346194718,1734771038845,-500.0,0.00019178,2]
[346194720,1734771038855,-500.0,0.00019178,2]
[346194722,1734771038864,-500.0,0.00019178,2]
[346194724,1734771038873,-500.0,0.00019178,2]
[346194726,1734771038882,-500.0,0.00019178,2]
[346194728,1734771038892,-500.0,0.00019178,2]
[346194730,1734771038901,-748.16,0.00019178,2]
[346194732,1734771038911,-500.0,0.00019178,2]
[346194734,1734771038920,-500.0,0.00019178,2]
[346194736,1734771038929,-500.0,0.00019178,2]
[346194738,1734771038938,-500.0,0.00019178,2]
[346194740,1734771038948,-500.0,0.00019178,2]
[346194742,1734771038958,-500.0,0.00019178,2]
[346194744,1734771038967,-500.0,0.00019178,2]
[346194746,1734771038976,-763.55,0.00019178,2]
[346194748,1734771038985,-500.0,0.00019178,2]
[346194750,1734771038995,-500.0,0.00019178,2]
[346194752,1734771039004,-500.0,0.00019178,2]
[346194754,1734771039014,-500.0,0.00019178,2]
[346194756,1734771039024,-309.26989034,0.00019178,2]
[346194758,1734771039033,-500.0,0.00019178,2]
[346194760,1734771039042,-1029.79,0.00019178,2]
[346194762,1734771039052,-500.0,0.00019178,2]
[346194764,1734771039061,-500.0,0.00019178,2]
[346194766,1734771039071,-500.0,0.00019178,2]
[346194768,1734771039080,-500.0,0.00019178,2]
[346194770,1734771039090,-788.75,0.00019178,2]
[346194772,1734771039099,-500.0,0.00019178,2]
[346194774,1734771039108,-501.45174665,0.00019178,2]
[346194776,1734771039117,-500.0,0.00019178,2]
[346194805,1734771039356,-500.0,0.00019178,2]
[346194807,1734771039366,-536.16,0.00019178,2]
[346194809,1734771039376,-500.0,0.00019178,2]
[346194811,1734771039385,-509.23609663,0.00019178,2]
[346194813,1734771039395,-500.0,0.00019178,2]
[346194816,1734771039405,-528.67,0.00019178,2]
[346194818,1734771039419,-500.0,0.00019178,2]
[346194820,1734771039429,-502.75654625,0.00019178,2]
[346194822,1734771039438,-500.0,0.00019178,2]
[346194824,1734771039447,-500.0,0.00019178,2]
[346194825,1734771039457,-500.0,0.00019178,2]
[346194827,1734771039466,-1519.22,0.00019178,2]
[346194829,1734771039476,-501.03747323,0.00019178,2]
[346194832,1734771039487,-500.0,0.00019178,2]
[346194833,1734771039496,-500.0,0.00019178,2]
[346194835,1734771039506,-507.89,0.00019178,2]
[346194838,1734771039515,-510.85090268,0.00019178,2]
[346194840,1734771039527,-500.0,0.00019178,2]
[346194842,1734771039537,-500.0,0.00019178,2]
[346194844,1734771039548,-500.0,0.00019178,2]
[346194846,1734771039557,-500.0,0.00019178,2]
[346194848,1734771039568,-500.0,0.00019178,2]
[346194850,1734771039577,-500.0,0.00019178,2]
[346194852,1734771039587,-503.2879548,0.00019178,2]
[346194854,1734771039597,-500.0,0.00019178,2]
[346194856,1734771039607,-502.07917723,0.00019178,2]
[346194858,1734771039616,-958.33,0.00019178,2]
[346194860,1734771039625,-500.0,0.00019178,2]
[346194862,1734771039634,-503.15037489,0.00019178,2]
[346194864,1734771039644,-500.0,0.00019178,2]
[346194866,1734771039653,-503.37761399,0.00019178,2]
[346194868,1734771039663,-503.06263066,0.00019178,2]
[346194870,1734771039672,-773.25,0.00019178,2]
[346194872,1734771039682,-501.81658553,0.00019178,2]
[346194874,1734771039691,-500.0,0.00019178,2]
[346194876,1734771039700,-504.97171716,0.00019178,2]
[346194878,1734771039710,-505.6581061,0.00019178,2]
[346194880,1734771039719,-500.0,0.00019178,2]
[346194882,1734771039729,-500.0,0.00019178,2]
[346194884,1734771039738,-500.0,0.00019178,2]
[346194886,1734771039747,-500.0,0.00019178,2]
[346194888,1734771039757,-500.0,0.00019178,2]
[346194890,1734771039766,-500.0,0.00019178,2]
[346194892,1734771039778,-500.0,0.00019178,2]
[346194894,1734771039787,-500.0,0.00019178,2]
[346194896,1734771039796,-501.62859968,0.00019178,2]
[346194898,1734771039806,-940.23,0.00019178,2]
[346194900,1734771039815,-506.95446503,0.00019178,2]
[346194902,1734771039824,-500.0,0.00019178,2]
[346194904,1734771039833,-500.0,0.00019178,2]
[346194906,1734771039844,-501.10053808,0.00019178,2]
[346194908,1734771039853,-506.13452148,0.00019178,2]
[346194910,1734771039862,-500.0,0.00019178,2]
[346194912,1734771039872,-500.0,0.00019178,2]
[346194914,1734771039881,-503.50268886,0.00019178,2]
[346194916,1734771039890,-500.0,0.00019178,2]
[346194918,1734771039899,-500.0,0.00019178,2]
[346194920,1734771039909,-500.0,0.00019178,2]
[346194922,1734771039918,-504.480423,0.00019178,2]
[346194924,1734771039927,-500.0,0.00019178,2]
[346194926,1734771039936,-500.0,0.00019178,2]
[346194928,1734771039945,-500.0,0.00019178,2]
[346194930,1734771039954,-501.0105977,0.00019178,2]
[346194932,1734771039964,-500.0,0.00019178,2]
[346194934,1734771039974,-500.0,0.00019178,2]
[346194936,1734771039984,-500.0,0.00019178,2]
[346194938,1734771039994,-500.0,0.00019178,2]
[346194940,1734771040003,-501.83184653,0.00019178,2]
[346194942,1734771040012,-500.0,0.00019178,2]
[346194944,1734771040022,-500.0,0.00019178,2]
[346194946,1734771040031,-1019.84,0.00019178,2]
[346194948,1734771040040,-500.0,0.00019178,2]
[346194950,1734771040048,-500.0,0.00019178,2]
[346194951,1734771040058,-1005.03,0.00019178,2]
[346194954,1734771040067,-506.7790582,0.00019178,2]
[346194956,1734771040077,-521.25550519,0.00019178,2]
[346194958,1734771040085,-507.80992987,0.00019178,2]
[346194960,1734771040095,-588.12,0.00019178,2]
[346194962,1734771040105,-503.52617128,0.00019178,2]
[346194964,1734771040115,-500.0,0.00019178,2]
[346194965,1734771040124,-503.57163215,0.00019178,2]
[346194968,1734771040134,-502.45964437,0.00019178,2]
[346194970,1734771040143,-504.01078496,0.00019178,2]
[346194972,1734771040153,-4565.57,0.00019178,2]
[346194973,1734771040163,-506.27849936,0.00019178,2]
[346194975,1734771040172,-502.81027358,0.00019178,2]
[346194978,1734771040182,-500.0,0.00019178,2]
[346194979,1734771040192,-500.0,0.00019178,2]
[346194982,1734771040201,-500.0,0.00019178,2]
[346194984,1734771040210,-510.9824189,0.00019178,2]
[346194986,1734771040221,-500.0,0.00019178,2]
[346194988,1734771040231,-502.40396064,0.00019178,2]
[346194989,1734771040240,-347.9959276,0.00019178,2]
[346194992,1734771040250,-500.0,0.00019178,2]
[346194993,1734771040259,-500.0,0.00019178,2]
[346194995,1734771040271,-500.0,0.00019178,2]
[346194998,1734771040280,-500.0,0.00019178,2]
[346195000,1734771040290,-500.0,0.00019178,2]
[346195002,1734771040299,-500.0,0.00019178,2]
[346195004,1734771040308,-285.72079156,0.00019178,2]
[346195005,1734771040318,-500.0,0.00019178,2]
[346195007,1734771040327,-509.04453183,0.00019178,2]
[346195009,1734771040336,-501.93852512,0.00019178,2]
[346195011,1734771040346,-500.0,0.00019178,2]
[346195013,1734771040355,-920.41,0.00019178,2]
[346195015,1734771040365,-500.0,0.00019178,2]
[346195017,1734771040374,-502.03297835,0.00019178,2]
[346195019,1734771040384,-500.0,0.00019178,2]
[346195021,1734771040393,-503.27699074,0.00019178,2]
[346195023,1734771040403,-500.0,0.00019178,2]
[346195025,1734771040414,-502.29180981,0.00019178,2]
[346195027,1734771040423,-502.24620753,0.00019178,2]
[346195029,1734771040433,-501.22157879,0.00019178,2]
[346195031,1734771040442,-366.38902834,0.00019178,2]
[346195035,1734771040470,-164.83628937,0.00019178,2]
[346195037,1734771040480,-500.0,0.00019178,2]
[346195039,1734771040493,-220.79666908,0.00019178,2]
[346195042,1734771040506,-279.20333092,0.00019178,2]
[346195043,1734771040516,-500.0,0.00019178,2]
[346195046,1734771040526,-506.30572515,0.00019178,2]
[346195048,1734771040535,-500.0,0.00019178,2]
[346195050,1734771040545,-186.83094393,0.00019178,2]
[346195052,1734771040556,-316.40676615,0.00019178,2]
[346195054,1734771040565,-383.13323385,0.00019178,2]
[346195072,1734771040823,-224.47185499,0.00019178,2]
[346195073,1734771040833,-106.05022408,0.00019178,2]
[346195074,1734771040869,-399.12228545,0.00019178,2]
[346195075,1734771040879,-1452.24,0.00019178,2]
[346195076,1734771040887,-480.51156989,0.00019178,2]
[346195077,1734771040896,-500.0,0.00019178,2]
[346195078,1734771040905,-505.35760948,0.00019178,2]
[346195079,1734771040915,-500.0,0.00019178,2]
[346195080,1734771040924,-500.78837733,0.00019178,2]
[346195081,1734771040933,-502.29945652,0.00019178,2]
[346195082,1734771040942,-504.33221175,0.00019178,2]
[346195083,1734771040951,-500.0,0.00019178,2]
[346195084,1734771040960,-367.69203084,0.00019178,2]
[346195126,1734771042614,-129.45679522,0.00019178,2]
[346195127,1734771042623,-234.01982073,0.00019178,2]
[346195128,1734771042671,-873.46017927,0.00019178,2]
[346195129,1734771042681,-500.0,0.00019178,2]
[346195130,1734771042691,-504.14506407,0.00019178,2]
[346195131,1734771042705,-503.58819522,0.00019178,2]
[346195132,1734771042714,-500.0,0.00019178,2]
[346195133,1734771042724,-507.04222171,0.00019178,2]
[346195134,1734771042733,-509.5932412,0.00019178,2]
[346195135,1734771042743,-500.0,0.00019178,2]
[346195136,1734771042804,-500.0,0.00019178,2]
[346195137,1734771042813,-500.0,0.00019178,2]
[346195138,1734771042823,-500.0,0.00019178,2]
[346195139,1734771042832,-500.0,0.00019178,2]
[346195140,1734771042841,-500.0,0.00019178,2]
[346195141,1734771042851,-308.45170374,0.00019178,2]
[346195142,1734771042859,-502.05344853,0.00019178,2]
[346195143,1734771042869,-669.57,0.00019178,2]
[346195144,1734771042878,-500.0,0.00019178,2]
[346195145,1734771042888,-500.0,0.00019178,2]
[346195146,1734771042898,-500.0,0.00019178,2]
[346195147,1734771042910,-500.0,0.00019178,2]
[346195148,1734771042921,-500.0,0.00019178,2]
[346195149,1734771042930,-500.0,0.00019178,2]
[346195150,1734771042941,-500.0,0.00019178,2]
[346195151,1734771042951,-500.0,0.00019178,2]
[346195152,1734771042961,-522.5,0.00019178,2]
[346195153,1734771042972,-1000.0,0.00019178,2]
[346195154,1734771042983,-137.17823475,0.00019178,2]
[346195155,1734771043006,-362.82176525,0.00019178,2]
[346195156,1734771043016,-500.0,0.00019178,2]
[346195157,1734771043027,-502.19090799,0.00019178,2]
[346195158,1734771043037,-504.0146019,0.00019178,2]
[346195159,1734771043046,-500.0,0.00019178,2]
[346195160,1734771043055,-500.0,0.00019178,2]
[346195161,1734771043064,-500.0,0.00019178,2]
[346195162,1734771043073,-850.23,0.00019178,2]
[346195163,1734771043083,-500.0,0.00019178,2]
[346195164,1734771043092,-500.0,0.00019178,2]
[346195165,1734771043101,-513.49565591,0.00019178,2]
[346195166,1734771043111,-500.0,0.00019178,2]
[346195167,1734771043121,-500.0,0.00019178,2]
[346195168,1734771043131,-500.0,0.00019178,2]
[346195169,1734771043140,-500.0,0.00019178,2]
[346195170,1734771043149,-500.0,0.00019178,2]
[346195171,1734771043159,-500.0,0.00019178,2]
[346195172,1734771043168,-625.71,0.00019178,2]
[346195173,1734771043178,-500.0,0.00019178,2]
[346195174,1734771043187,-2245.3,0.00019178,2]
[346195175,1734771043196,-504.3410319,0.00019178,2]
[346195176,1734771043206,-500.0,0.00019178,2]
[346195177,1734771043215,-500.0,0.00019178,2]
[346195178,1734771043225,-500.0,0.00019178,2]
[346195179,1734771043234,-500.0,0.00019178,2]
[346195180,1734771043244,-200.0,0.00019178,2]
[346195181,1734771043254,-500.0,0.00019178,2]
[346195182,1734771043264,-500.0,0.00019178,2]
[346195183,1734771043274,-500.0,0.00019178,2]
[346195184,1734771043285,-500.0,0.00019178,2]
[346195185,1734771043294,-500.0,0.00019178,2]
[346195186,1734771043304,-500.0,0.00019178,2]
[346195187,1734771043313,-987.57,0.00019178,2]
[346195188,1734771043322,-500.0,0.00019178,2]
[346195189,1734771043332,-500.0,0.00019178,2]
[346195190,1734771043341,-509.89987495,0.00019178,2]
[346195191,1734771043351,-500.0,0.00019178,2]
[346195192,1734771043361,-583.93,0.00019178,2]
[346195193,1734771043371,-500.0,0.00019178,2]
[346195194,1734771043381,-500.0,0.00019178,2]
[346195195,1734771043390,-500.0,0.00019178,2]
[346195196,1734771043399,-500.0,0.00019178,2]
[346195197,1734771043410,-500.0,0.00019178,2]
[346195198,1734771043421,-500.0,0.00019178,2]
[346195199,1734771043430,-1024.15,0.00019178,2]
[346195200,1734771043440,-500.0,0.00019178,2]
[346195201,1734771043450,-191.22775839,0.00019178,2]
[346195203,1734771045478,-324.21957404,0.00019178,2]
[346195204,1734771045490,-500.0,0.00019178,2]
[346195205,1734771045499,-134.34042596,0.00019178,2]
[346195206,1734771045525,-365.65957404,0.00019178,2]
[346195207,1734771045535,-500.0,0.00019178,2]
[346195208,1734771045544,-444.77272818,0.00019178,2]
[346195209,1734771045553,-1062.42,0.00019178,2]
[346195210,1734771045563,-500.0,0.00019178,2]
[346195211,1734771045573,-500.0,0.00019178,2]
[346195212,1734771045582,-506.37013752,0.00019178,2]
[346195213,1734771045591,-500.0,0.00019178,2]
[346195214,1734771045601,-508.30221331,0.00019178,2]
[346195215,1734771045610,-500.0,0.00019178,2]
[346195216,1734771045619,-500.0,0.00019178,2]
[346195217,1734771045629,-500.0,0.00019178,2]
[346195218,1734771045638,-504.37465696,0.00019178,2]
[346195219,1734771045648,-75.70068993,0.00019178,2]
[346195220,1734771045834,-465.73931007,0.00019178,2]
[346195221,1734771045845,-500.0,0.00019178,2]
[346195222,1734771045854,-500.0,0.00019178,2]
[346195224,1734771045863,-500.0,0.00019178,2]
[346195226,1734771045872,-507.33156967,0.00019178,2]
[346195228,1734771045882,-500.0,0.00019178,2]
[346195230,1734771045891,-500.0,0.00019178,2]
[346195232,1734771045900,-500.0,0.00019178,2]
[346195234,1734771045909,-500.0,0.00019178,2]
[346195236,1734771045919,-500.0,0.00019178,2]
[346195238,1734771045928,-500.0,0.00019178,2]
[346195239,1734771045938,-500.0,0.00019178,2]
[346195241,1734771045948,-900.45,0.00019178,2]
[346195243,1734771045957,-500.0,0.00019178,2]
[346195244,1734771045966,-500.0,0.00019178,2]
[346195246,1734771045975,-500.0,0.00019178,2]
[346195247,1734771045984,-305.79303438,0.00019178,2]
[346195248,1734771045993,-500.0,0.00019178,2]
[346195249,1734771046004,-500.0,0.00019178,2]
[346195250,1734771046013,-500.0,0.00019178,2]
[346195251,1734771046024,-891.33453088,0.00019178,2]
[346195253,1734771585707,-250.0,0.00018444,2]
[346195254,1734771585732,-1000.0,0.00018444,2]
[346195255,1734771585758,-300.0,0.00018455,2]
[346195257,1734771738418,183.2,0.00018449,2]
[346195259,1734771891350,684.96,0.00016552,2]
[346195260,1734771896994,161.97,0.0001868,30]
[346195262,1734772044098,-263.52672898,0.00018456,2]
[346195263,1734772050127,-23636.47327102,0.00018456,2]
[346195264,1734772050151,-250.0,0.00018466,2]
[346195265,1734772050173,-552.45,0.00018488,2]
[346195266,1734772050195,-684.96,0.00018816,2]
[346195267,1734772050216,-161.52018507,0.00019078,2]
[346195268,1734772050572,-222.66472991,0.00019078,2]
[346195269,1734772050597,-248.2297119,0.00019078,2]
[346195270,1734772050617,-14607.1358,0.00019078,2]
[346195271,1734772050640,-1000.0,0.00019078,2]
[346195272,1734772050660,-500.0,0.00019078,2]
[346195273,1734772050680,-78994.99058987,0.00019078,2]
[346195283,1734772199392,12331.52127614,0.00020222,120]
[346195286,1734772232085,-169.15,0.00018541,2]
[346195287,1734772232095,-250.0,0.00018566,2]
[346195288,1734772232104,-521.7184,0.00019078,2]
[346195289,1734772232143,-879.03914684,0.00019078,2]
[346195290,1734772232152,-21193.51811013,0.00019078,2]
[346195291,1734772232161,-5000.0,0.00019078,2]
[346195292,1734772232171,-4219.3505,0.00019078,2]
[346195293,1734772232181,-500.0,0.00019078,2]
[346195294,1734772232190,-1000.0,0.00019078,2]
[346195295,1734772232199,-703.9639,0.00019078,2]
[346195296,1734772232210,-172.59222603,0.00019097,2]
[346195297,1734772232220,-1852.03440398,0.00019177,7]
[346195298,1734772232230,-500.0,0.00019177,2]
[346195299,1734772232239,-500.0,0.00019178,2]
[346195300,1734772232249,-500.0,0.00019178,2]
[346195301,1734772232258,-500.0,0.00019178,2]
[346195302,1734772232267,-500.0,0.00019178,2]
[346195303,1734772232277,-500.0,0.00019178,2]
[346195304,1734772232286,-500.0,0.00019178,2]
[346195305,1734772232295,-500.0,0.00019178,2]
[346195306,1734772232305,-500.0,0.00019178,2]
[346195307,1734772232314,-500.0,0.00019178,2]
[346195308,1734772232323,-448.39533139,0.00019178,2]
[346195309,1734772232333,-500.0,0.00019178,2]
[346195310,1734772232342,-500.0,0.00019178,2]
[346195311,1734772232351,-85.51022829,0.00019178,2]
[346195312,1734772232364,-410.81926677,0.00019178,2]
[346195313,1734772232373,-525.70088984,0.00019178,2]
[346195314,1734772232383,-500.0,0.00019178,2]
[346195315,1734772232392,-443.13009904,0.00019178,2]
[346195319,1734772237655,-56.86990096,0.00019178,2]
[346195320,1734772237664,-435.19509904,0.00019178,2]
[346195321,1734772237677,-66.8685951,0.00019178,2]
[346195322,1734772237686,-425.12583339,0.00019178,2]
[346195323,1734772237767,-145.59903308,0.00019178,2]
[346195324,1734772237777,-500.0,0.00019178,2]
[346195325,1734772237788,-620.19771973,0.00019178,2]
[346195326,1734772237798,-500.0,0.00019178,2]
[346195327,1734772237807,-500.0,0.00019178,2]
[346195328,1734772237818,-500.0,0.00019178,2]
[346195329,1734772237830,-500.0,0.00019178,2]
[346195330,1734772237840,-500.0,0.00019178,2]
[346195331,1734772237850,-500.0,0.00019178,2]
[346195332,1734772237862,-500.0,0.00019178,2]
[346195333,1734772237872,-500.0,0.00019178,2]
[346195334,1734772237882,-500.0,0.00019178,2]
[346195335,1734772237893,-500.0,0.00019178,2]
[346195336,1734772237902,-500.0,0.00019178,2]
[346195337,1734772237912,-500.0,0.00019178,2]
[346195338,1734772237921,-500.0,0.00019178,2]
[346195339,1734772237931,-500.0,0.00019178,2]
[346195340,1734772237941,-500.0,0.00019178,2]
[346195342,1734772237951,-500.0,0.00019178,2]
[346195343,1734772237961,-500.0,0.00019178,2]
[346195344,1734772237970,-175.03216359,0.00019178,2]
[346195362,1734772238460,-324.96783641,0.00019178,2]
[346195363,1734772238470,-500.0,0.00019178,2]
[346195364,1734772238480,-175.03216359,0.00019178,2]
[346195368,1734772243157,-1158.04,0.00018694,2]
[346195369,1734772243167,-130.89264379,0.00019178,2]
[346195373,1734772243446,-194.07519262,0.00019178,2]
[346195374,1734772243456,-500.0,0.00019178,2]
[346195375,1734772243465,-500.0,0.00019178,2]
[346195376,1734772243475,-500.0,0.00019178,2]
[346195377,1734772243484,-500.0,0.00019178,2]
[346195378,1734772243494,-2482.207416,0.00019178,2]
[346195379,1734772243503,-500.0,0.00019178,2]
[346195381,1734772243512,-500.0,0.00019178,2]
[346195383,1734772243522,-500.0,0.00019178,2]
[346195385,1734772243531,-500.0,0.00019178,2]
[346195386,1734772243542,-2000.0,0.00019178,2]
[346195387,1734772243551,-500.0,0.00019178,2]
[346195388,1734772243561,-200.0,0.00019178,2]
[346195389,1734772243570,-500.0,0.00019178,2]
[346195390,1734772243580,-156.963598,0.00019178,2]
[346195391,1734772243589,-152.561789,0.00019178,2]
[346195392,1734772243599,-500.0,0.00019178,2]
[346195393,1734772243609,-1531.1753,0.00019178,2]
[346195394,1734772243619,-500.0,0.00019178,2]
[346195395,1734772243627,-545.18,0.00019178,2]
[346195396,1734772243637,-300.0,0.00019178,2]
[346195397,1734772243647,-500.0,0.00019178,2]
[346195398,1734772243656,-500.0,0.00019178,2]
[346195399,1734772243666,-500.0,0.00019178,2]
[346195400,1734772243675,-156.352956,0.00019178,2]
[346195401,1734772243685,-500.0,0.00019178,2]